[Event "XLIX Sevilla Open 2024"]
[Site "?"]
[Date "2024.01.12"]
[Round "1.1"]
[White "Stremavicius, Titas"]
[Black "Skielnik, Joseph J"]
[Result "1-0"]
[ECO "E65"]
[WhiteElo "2543"]
[BlackElo "1750"]
[Annotator "TA"]
[PlyCount "131"]
[EventDate "2024.01.12"]
[EventType "swiss"]
[SourceTitle "playchess.com"]
[Source "ChessBase"]
[SourceQuality "1"]
[TimeControl "5400+30"]

{[%evp 18,131,54,30,42,38,46,12,32,24,35,25,53,36,39,21,70,72,79,85,141,142,156,83,151,160,136,104,123,135,143,123,146,145,131,154,139,146,141,163,160,172,136,172,136,134,141,134,134,134,107,77,177,173,150,83,160,90,120,97,89,95,171,152,303,262,275,272,250,235,279,71,71,71,71,71,71,71,71,71,71,71,71,71,71,71,71,71,75,8,8,8,8,8,8,8,8,8,121,121,121,121,121,121,29980,29981,29981,29982,29982,29983,29982,29984,29984,29985,29985,29986]} 1. Nf3 {[%emt 0:00:04]} Nf6 {[%emt 0:00:13]} 2. g3 {[%emt 0:00:36]} g6 {[%emt 0:00:12]} 3. Bg2 {[%emt 0:00:08]} Bg7 {[%emt 0:00:05]} 4. O-O {[%emt 0:00:07]} O-O {[%emt 0:00:27]} 5. d4 {[%emt 0:00:06]} d6 {[%emt 0:01:17]} 6. c4 {[%emt 0:00:09]} Nbd7 {[%emt 0:00:56]} 7. Nc3 {[%emt 0:00:29]} c5 {[%emt 0:01:39]} 8. b3 {[%emt 0:05:12]} Rb8 {[%emt 0:02:52]} 9. Bb2 {[%emt 0:08:44]} a6 {[%emt 0:08:10]} 10. a4 {[%emt 0:00:44]} cxd4 {[%emt 0:04:13] E65: King's Indian: Fianchetto: 6...c5 7 0-0 without d5 by White.} 11. Nxd4 {[%emt 0:00:06]} Nc5 {[%emt 0:00:28]} 12. e4 {[%emt 0:05:21] [#]} e5 $146 {[%emt 0:12:54] The position is equal.} (12... Bg4 $5 {[%cal Rg4d1]} 13. Qc2 (13. f3 Bd7 $11) 13... Nfd7 $11) ({Predecessor:} 12... Ng4 13. Nde2 f5 14. Qc2 e5 15. Nd5 Be6 16. Nec3 f4 17. f3 Nh6 18. Rfd1 fxg3 19. hxg3 {0-1 Pascua,H (2413)-Li,S (2558) Asian Continental op 12th 2013 (4)}) 13. Nde2 {[%emt 0:00:09]} Qb6 {[%emt 0:04:28]} 14. Ra3 {[%emt 0:01:13]} Rd8 {[%emt 0:04:03]} 15. h3 {[%emt 0:04:43]} Be6 {[%emt 0:01:47]} 16. Qc2 {[%emt 0:01:47]} Rbc8 {[%emt 0:06:33]} (16... Rdc8 $11 {might be stronger.}) 17. Kh2 {[%emt 0:00:34]} Ncd7 {[%emt 0:04:05]} 18. f4 {[%emt 0:05:50][%cal Bf2f4,Bf4f5][%mdl 32]} Nf8 {[%emt 0:12:55]} (18... exf4 $142 19. gxf4 Bg4) 19. f5 $16 {[%emt 0:01:53]} Bd7 {[%emt 0:00:55]} 20. Bc1 {[%emt 0:11:12]} ({White should try} 20. g4 {Hoping for g5.} gxf5 21. a5) 20... Bc6 {[%emt 0:03:47]} (20... Qc5 $142) 21. Bg5 {[%emt 0:02:29] fxg6 would be deadly.} N8d7 {[%emt 0:00:15]} 22. Raa1 {[%emt 0:02:12]} h6 {[%emt 0:02:14]} 23. Bxf6 {[%emt 0:00:07]} Nxf6 {[%emt 0:00:20]} 24. fxg6 {[%emt 0:00:24]} fxg6 {[%emt 0:00:10]} 25. Nd5 {[%emt 0:00:41]} Bxd5 {[%emt 0:04:21]} 26. exd5 {[%emt 0:00:04]} Kh7 {[%emt 0:01:05]} 27. Nc3 {[%emt 0:07:44]} Rf8 {[%emt 0:03:34]} 28. Be4 {[%emt 0:04:39]} Nxe4 {[%emt 0:01:28]} 29. Nxe4 {[%emt 0:00:07]} Rxf1 {[%emt 0:07:44]} 30. Rxf1 {[%emt 0:00:04]} Rf8 {[%emt 0:01:08] Wards off Rf7} 31. Rxf8 {[%emt 0:03:26]} Bxf8 {[%emt 0:00:02]} 32. Qf2 {[%emt 0:00:10]} Qxf2+ {[%emt 0:01:19]} 33. Nxf2 {[%emt 0:00:04][%mdl 4096] Endgame KB-KN} Kg7 {[%emt 0:01:41]} 34. Kg2 {[%emt 0:01:46]} Kf7 {[%emt 0:01:23]} (34... b6 $16 {was worth a try.}) 35. a5 $1 $18 {[%emt 0:00:16]} Ke7 {[%emt 0:01:35]} 36. Kf3 {[%emt 0:04:56]} (36. b4 $142) 36... h5 {[%emt 0:01:25]} (36... Kd7 $142) 37. Ke4 $16 {[%emt 0:01:20] Threatens to win with Nd3.} Bh6 {[%emt 0:00:34]} 38. Kd3 $1 {[%emt 0:00:07] Dodges Bd2} Kd7 {[%emt 0:01:02]} 39. Ne4 {[%emt 0:01:29]} Bc1 {[%emt 0:02:13]} (39... Bf8 $16) 40. b4 $18 {[%emt 0:01:07][%cal Bb3b4,Bb4c5][%mdl 32]} Bb2 $2 {[%emt 0:01:15]} (40... Kc7 $16 41. c5 dxc5) 41. c5 {[%emt 0:01:50]} dxc5 {[%emt 0:00:46]} 42. bxc5 {[%emt 0:00:16]} Bd4 {[%emt 0:00:43]} 43. Kc4 {[%emt 0:00:20]} Be3 {[%emt 0:00:51]} 44. Nf6+ $2 {[%emt 0:05:42]} (44. Nd6 $18) 44... Ke7 $16 {[%emt 0:00:30] [#]} 45. c6 $1 {[%emt 0:04:14]} bxc6 {[%emt 0:02:04] [#]} (45... Kxf6 $2 46. c7 $18 (46. cxb7 $2 Ba7 $19)) 46. dxc6 $1 {[%emt 0:00:03]} Kd8 {[%emt 0:00:24] [#]} (46... Kxf6 47. c7 h4 48. gxh4 $18 (48. c8=R $2 hxg3 49. Rf8+ Kg5 $19)) 47. Ne4 $1 {[%emt 0:00:45] Prevents Bd2} Kc7 {[%emt 0:01:07]} 48. Kd5 {[%emt 0:00:05]} Bd4 {[%emt 0:00:29]} 49. Ng5 {[%emt 0:00:36] Threatening mate with Ne6+.} Bc3 {[%emt 0:00:14]} 50. Ne6+ {[%emt 0:00:05]} Kc8 {[%emt 0:00:20] [#]} 51. Nc5 $1 {[%emt 0:00:12]} Bxa5 {[%emt 0:00:30]} 52. Nxa6 {[%emt 0:00:05]} ({Much weaker is} 52. Kxe5 Bc7+ 53. Kd5 Bxg3 $11) 52... Be1 {[%emt 0:00:18]} 53. g4 {[%emt 0:00:05]} (53. Kxe5 $16 Bxg3+ 54. Kf6) 53... hxg4 $11 {[%emt 0:00:14]} 54. hxg4 {[%emt 0:00:04][%cal Oa6c5]} (54. Kxe5 {gets mated.} gxh3 55. Nc5 h2 56. Ne4 h1=Q 57. Nd6+ Kc7 58. Nb5+ Kxc6 59. Nd4+ Kd7 60. Ne6 Bc3+ 61. Kf4 Kxe6 62. Ke3 Kd5 63. Kf2 Ke4 64. Kg3 Be1+ 65. Kg4 Qh5#) 54... Bg3 $1 {[%emt 0:00:20]} 55. Nc5 {[%emt 0:07:04]} Kc7 $1 {[%emt 0:01:08]} 56. Ne6+ {[%emt 0:00:27]} Kc8 {[%emt 0:00:11]} 57. Nf8 {[%emt 0:02:51]} g5 {[%emt 0:00:07]} (57... Kc7 $1 $11) 58. Ne6 $16 {[%emt 0:00:08]} Bf4 {[%emt 0:00:24]} 59. Ke4 {[%emt 0:00:03] White is more active.} Kb8 {[%emt 0:00:28]} 60. Kf5 {[%emt 0:00:20]} Kc8 $2 {[%emt 0:00:57][%mdl 8192] This move loses the game for Black.} (60... Be3 $16 61. Kxe5 (61. Nxg5 Kc7 $11) 61... Bd2) 61. Nxg5 {[%emt 0:00:16] White mates.} Kc7 {[%emt 0:00:22]} 62. Ne6+ {[%emt 0:00:08]} Kxc6 {[%emt 0:00:20]} 63. Nxf4 {[%emt 0:00:05]} exf4 {[%emt 0:00:04]} 64. Kxf4 {[%emt 0:00:05]} Kd7 {[%emt 0:00:12]} 65. Kg5 {[%emt 0:00:07]} Ke7 {[%emt 0:00:11]} 66. Kg6 {[%emt 0:00:12] Weighted Error Value: White=0.14 (very precise) /Black=0.28 (precise)} 1-0

[Event "XLIX Sevilla Open 2024"]
[Site "?"]
[Date "2024.01.12"]
[Round "1.2"]
[White "Siliceo Capilla, Alfonso"]
[Black "Petkov, Momchil"]
[Result "0-1"]
[ECO "B15"]
[WhiteElo "1748"]
[BlackElo "2498"]
[Annotator "TA"]
[PlyCount "33"]
[EventDate "2024.01.12"]
[EventType "swiss"]
[SourceTitle "playchess.com"]
[Source "ChessBase"]
[SourceQuality "1"]
[TimeControl "5400+30"]

{[%evp 15,33,27,36,25,19,10,65,-79,-74,-157,-157,-173,-150,-250,-227,-661,-649,-1150,-1126,-1059]} 1. e4 {[%emt 0:00:05]} c6 {[%emt 0:00:14]} 2. d4 {[%emt 0:00:06]} d5 {[%emt 0:00:10]} 3. Nc3 {[%emt 0:00:07]} dxe4 {[%emt 0:00:18]} 4. Nxe4 {[%emt 0:00:09]} Nf6 {[%emt 0:00:15]} 5. Nxf6+ {[%emt 0:00:08]} exf6 {[%emt 0:00:06]} 6. c3 {[%emt 0:00:15]} Bd6 {[%emt 0:00:15]} 7. Bd3 {[%emt 0:00:07]} O-O {[%emt 0:00:43]} 8. Qc2 {[%emt 0:00:12]} g6 {[%emt 0:01:42]} 9. Bh6 {[%emt 0:00:26] B15: Caro-Kann: 3 Nc3: 3...g6 and 3...dxe4 4 Nxe4 Nf6 5 Nxf6+ exf6.} Re8+ {[%emt 0:00:06]} 10. Ne2 {[%emt 0:00:14]} c5 {[%emt 0:02:08]} ({Better is} 10... f5 $11) 11. d5 {[%emt 0:06:53] [#]} (11. O-O-O $14) 11... Nd7 $146 {[%emt 0:04:16][%cal Bb8d7,Bd7e5,Be5g4][%mdl 32] Black is more active.} ({Predecessor:} 11... Bf8 12. Bxf8 Kxf8 13. c4 Nd7 14. O-O Ne5 15. Be4 f5 16. Bd3 b6 17. Nc3 Bb7 {½-½ Svoboda,M (1250)-Dobes,V (1100) CZE-ch U10 Zlate Hory 2006 (3)}) 12. O-O-O {[%emt 0:01:14] [#]} ({White should play} 12. O-O) 12... Ne5 $1 {[%emt 0:02:57]} 13. Ng3 {[%emt 0:30:38] [#]} Ng4 $1 {[%emt 0:07:36]} 14. Qd2 {[%emt 0:00:58]} (14. Be3 $17) 14... g5 $19 {[%emt 0:08:06] Strongly threatening ...Bf4.} 15. h4 $2 {[%emt 0:00:10]} (15. Qc2 Nxh6 16. Bxh7+ Kg7 17. Bd3) 15... Bf4 {[%emt 0:02:05][%mdl 64] Discovered Attack} ({Stronger than} 15... Nxh6 16. hxg5 fxg5 17. Kb1 (17. Rxh6 $2 {is the wrong capture.} Bf4 $19 {[%mdl 64] Discovered Attack}) 17... Bxg3 18. Rxh6 $19) 16. Qxf4 {[%emt 0:01:11]} gxf4 {[%emt 0:02:39]} 17. Bxf4 {[%emt 0:00:09] Weighted Error Value: White=1.65/Black=0.13 (very precise)} 0-1

[Event "XLIX Sevilla Open 2024"]
[Site "?"]
[Date "2024.01.12"]
[Round "1.3"]
[White "Szpar, Milosz"]
[Black "Gutierrez Marconi, Christian Fernando"]
[Result "1-0"]
[ECO "D94"]
[WhiteElo "2491"]
[BlackElo "1748"]
[Annotator "TA"]
[PlyCount "57"]
[EventDate "2024.01.12"]
[EventType "swiss"]
[SourceTitle "playchess.com"]
[Source "ChessBase"]
[SourceQuality "1"]
[TimeControl "5400+30"]

{[%evp 12,57,41,9,13,12,56,51,62,57,70,67,74,64,64,66,66,67,129,94,94,87,142,135,254,106,132,0,248,263,243,237,247,241,305,172,233,218,476,218,315,293,283,183,759,750,1248,1235]} 1. Nf3 {[%emt 0:00:11]} d5 {[%emt 0:01:43]} 2. e3 {[%emt 0:00:22]} Nf6 {[%emt 0:00:36]} 3. c4 {[%emt 0:00:06]} c6 {[%emt 0:01:06]} 4. Nc3 {[%emt 0:00:07]} g6 {[%emt 0:02:18]} 5. d4 {[%emt 0:01:46]} Bg7 {[%emt 0:00:13]} 6. Be2 {[%emt 0:00:55]} O-O {[%emt 0:00:30]} 7. h3 {[%emt 0:02:35]} b6 {[%emt 0:07:04] D94: Grünfeld: 4 Nf3 Bg7 5 e3.} 8. O-O {[%emt 0:00:26]} dxc4 {[%emt 0:04:21]} 9. Bxc4 {[%emt 0:00:27]} Ba6 {[%emt 0:00:11] White is slightly better.} 10. Bxa6 {[%emt 0:01:21]} Nxa6 {[%emt 0:00:03]} 11. e4 {[%emt 0:00:19] [#]} Nd7 $146 {[%emt 0:05:31]} ({Predecessor:} 11... c5 12. d5 Nc7 13. a4 Nd7 14. Bf4 e5 15. Bh2 Na6 16. Qe2 Nb4 17. Rfd1 Re8 {1-0 Mikavica,M (2270)-Staechelin,R Zuerich op-A 19th 1995 (2)}) 12. Qe2 {[%emt 0:09:41]} Nc7 {[%emt 0:07:02]} 13. Rd1 {[%emt 0:05:04]} Qc8 {[%emt 0:08:27]} 14. Bg5 {[%emt 0:09:48][%cal Bc1g5,Bg5f4,Bf4g3][%mdl 32]} Bf6 {[%emt 0:10:23]} (14... Re8 $14) 15. Bf4 {[%emt 0:03:27] White is more active.} Ne6 {[%emt 0:03:45]} 16. Bg3 {[%emt 0:03:35]} Re8 {[%emt 0:04:30]} (16... Qb7 $142) 17. Rac1 $16 {[%emt 0:02:34][%cal Ba1c1,Bc1c2,Bc2c6,Bc6e6][%mdl 32]} Ng5 {[%emt 0:07:54]} (17... Qb7 $16) 18. Nh2 {[%emt 0:09:33]} (18. e5 $18 {has better winning chances.} Nxf3+ 19. Qxf3) 18... Ne6 {[%emt 0:05:41]} 19. Nf3 {[%emt 0:04:05]} (19. d5 $16 Nd4 20. Qd2) 19... Ng5 $18 {[%emt 0:02:29]} 20. e5 {[%emt 0:00:14]} Nxf3+ {[%emt 0:00:24]} 21. Qxf3 {[%emt 0:00:05]} (21. gxf3 Bg7 $16) 21... Bg5 {[%emt 0:00:56] [#]} 22. Rc2 {[%emt 0:00:06]} Bh6 {[%emt 0:04:45]} 23. Ne4 {[%emt 0:02:38]} (23. Nd5 $142) 23... Qb7 {[%emt 0:00:59]} (23... c5 $142 24. dxc5 bxc5 25. Nxc5 Nf8) 24. Rxc6 {[%emt 0:01:21]} Rac8 $2 {[%emt 0:04:44]} (24... Qxc6 25. Nf6+ {[%mdl 64] Discovered Attack} Qxf6 26. exf6 Nxf6) 25. d5 {[%emt 0:01:14]} ({Much less strong is} 25. Ng5 f6 $18) (25. Rxg6+ $142 hxg6 26. Nf6+ {[%mdl 64] Discovered Attack} Nxf6 27. Qxb7) 25... Bg7 {[%emt 0:06:00]} (25... Rf8 {was necessary.} 26. Qc3 Nb8) 26. e6 {[%emt 0:01:34]} fxe6 {[%emt 0:00:24]} 27. Rxe6 {[%emt 0:02:52] [#] Strongly threatening d6.} ({Don't take} 27. Rxc8 $6 Qxc8 28. d6 (28. dxe6 Nf6 $16) 28... a5 $18) 27... Rf8 $2 {[%emt 0:01:49]} (27... Nf8) 28. Qb3 {[%emt 0:00:34] aiming for d6.} Rf7 {[%emt 0:05:31]} 29. d6 {[%emt 0:00:30] Weighted Error Value: White=0.51/Black=0.40} 1-0

[Event "XLIX Sevilla Open 2024"]
[Site "?"]
[Date "2024.01.12"]
[Round "1.4"]
[White "Lavela Perez, Nicolas"]
[Black "Basso, Pier Luigi"]
[Result "0-1"]
[ECO "A12"]
[WhiteElo "1747"]
[BlackElo "2482"]
[Annotator "TA"]
[PlyCount "72"]
[EventDate "2024.01.12"]
[EventType "swiss"]
[SourceTitle "playchess.com"]
[Source "ChessBase"]
[SourceQuality "1"]
[TimeControl "5400+30"]

{[%evp 15,72,-1,0,-19,-17,-22,-22,-22,-2,-26,-19,-20,-16,-43,-40,-55,-56,-73,-77,-65,-65,-83,-63,-79,-65,-81,-68,-66,-56,-100,-69,-93,-66,-137,-91,-151,-82,-66,-50,-94,-79,-211,-217,-418,-399,-1138,-1097,-1595,-1580,-1560,-1527,-1628,-1584,-1527,-1570,-1837,-1816,-1783,-1737]} 1. c4 {[%emt 0:00:18]} c6 {[%emt 0:09:26]} 2. Nf3 {[%emt 0:00:12]} d5 {[%emt 0:00:06]} 3. b3 {[%emt 0:00:11]} Nf6 {[%emt 0:00:09]} 4. Bb2 {[%emt 0:00:54]} Bf5 {[%emt 0:00:11]} 5. g3 {[%emt 0:05:47]} e6 {[%emt 0:00:16]} 6. Bg2 {[%emt 0:01:20]} h6 {[%emt 0:00:10]} 7. O-O {[%emt 0:05:51]} Be7 $1 {[%emt 0:00:06] 7...Be7 scores better than 7...Nbd7.} 8. d3 {[%emt 0:01:29]} O-O {[%emt 0:00:17]} 9. Na3 {[%emt 0:01:35] A12: English Opening: 1...c6 with b3 by White.} a5 {[%emt 0:00:17]} 10. Nc2 {[%emt 0:00:18]} Bh7 {[%emt 0:00:26] [#]} 11. Rc1 $146 {[%emt 0:07:43] The position is equal.} ({Predecessor:} 11. Qc1 Na6 12. Bc3 b5 13. Ne5 Rc8 14. a3 Qb6 15. Qd2 b4 16. axb4 axb4 17. Bd4 {1-0 Onkoud,A (2308)-Pruvot,L (2213) Paris-ch op 90th 2015 (1)}) 11... Na6 {[%emt 0:00:16]} 12. Bc3 {[%emt 0:10:17]} Nb4 {[%emt 0:04:51]} 13. Ra1 {[%emt 0:04:34]} c5 {[%emt 0:01:00]} 14. Na3 {[%emt 0:10:08]} d4 {[%emt 0:00:20]} 15. Bd2 {[%emt 0:00:48]} Nc6 {[%emt 0:00:29]} 16. Nb5 {[%emt 0:01:59]} e5 {[%emt 0:00:11]} 17. Ne1 {[%emt 0:05:40]} Qd7 {[%emt 0:01:58]} 18. f3 {[%emt 0:05:22]} Kh8 {[%emt 0:02:27]} 19. a4 {[%emt 0:00:26]} Rae8 {[%emt 0:00:20]} 20. Rf2 {[%emt 0:01:16]} Bd8 {[%emt 0:00:13]} 21. Nc2 {[%emt 0:01:43]} Ng8 {[%emt 0:00:20]} 22. Rc1 {[%emt 0:00:43]} f5 {[%emt 0:00:14]} 23. Qf1 {[%emt 0:05:07]} Nf6 {[%emt 0:00:31]} 24. Ne1 {[%emt 0:00:33]} (24. Bh3 $15) 24... Kg8 {[%emt 0:01:54]} (24... Nh5 $142 25. Nc2 Be7) 25. Rd1 {[%emt 0:03:23] [#]} (25. e4 $142) 25... g5 {[%emt 0:01:24]} ({Black should try} 25... e4 $1 {[%cal Re4e3] ...e3 is the strong threat.} 26. dxe4 fxe4) 26. Bh3 $17 {[%emt 0:03:19]} Kg7 {[%emt 0:00:27]} 27. Kh1 {[%emt 0:00:57]} Qe7 {[%emt 0:00:31] White must now prevent ...e4.} 28. Bg2 {[%emt 0:04:17] [#] This move loses the game for White.} (28. e4 $17) 28... e4 $1 $19 {[%emt 0:00:12] aiming for ...e3.} 29. fxe4 {[%emt 0:06:10]} (29. e3) 29... fxe4 {[%emt 0:00:07][%cal Bf5e4,Be4e3][%mdl 32]} ({Don't blunder} 29... Ng4 $2 30. Rf3 $19) 30. e3 $2 {[%emt 0:06:03]} (30. dxe4 Nxe4 {[%mdl 64] Discovered Attack} 31. Rf3) 30... Ng4 {[%emt 0:00:27][%csl LRe3,LRf2][%mdl 64] Discovered Attack. Black is clearly winning.} 31. Rf4 {[%emt 0:02:20]} gxf4 {[%emt 0:00:11]} 32. exf4 {[%emt 0:01:03]} e3 {[%emt 0:00:10] Strongly threatening ...e2.} 33. Qe2 {[%emt 0:00:14]} Nf2+ {[%emt 0:00:08][%cal Bg4f2,Bf2d1,Bd1f2][%mdl 32]} 34. Kg1 {[%emt 0:00:33]} Nxd1 {[%emt 0:00:09]} 35. Qg4+ {[%emt 0:00:45]} Kh8 {[%emt 0:00:09]} 36. Bc1 {[%emt 0:01:55]} Nf2 {[%emt 0:00:07] Weighted Error Value: White=0.78/Black=0.09 (flawless)} 0-1

[Event "XLIX Sevilla Open 2024"]
[Site "?"]
[Date "2024.01.12"]
[Round "1.5"]
[White "Mitusov, Semen"]
[Black "Salas Campuzano, Sergio"]
[Result "1-0"]
[ECO "C77"]
[WhiteElo "2479"]
[BlackElo "1746"]
[Annotator "TA"]
[PlyCount "71"]
[EventDate "2024.01.12"]
[EventType "swiss"]
[SourceTitle "playchess.com"]
[Source "ChessBase"]
[SourceQuality "1"]
[TimeControl "5400+30"]

{[%evp 10,71,12,7,6,0,18,8,61,58,51,19,53,50,56,56,38,31,51,59,49,56,78,71,90,80,91,58,62,60,75,51,89,89,96,60,48,58,52,0,0,0,25,23,41,27,70,70,151,150,161,169,157,141,173,139,285,260,390,380,485,447,573,574]} 1. e4 {[%emt 0:00:04]} e5 {[%emt 0:01:43]} 2. Nf3 {[%emt 0:01:04]} Nc6 {[%emt 0:00:11]} 3. Bb5 {[%emt 0:00:17]} a6 {[%emt 0:00:12]} 4. Ba4 {[%emt 0:00:14]} Nf6 {[%emt 0:00:13]} 5. Nc3 {[%emt 0:01:15]} Bb4 {[%emt 0:00:54]} 6. Nd5 {[%emt 0:02:24] aiming for Bxc6.} Bc5 {[%emt 0:08:35] 6...Nxd5 is the hot move. C77: Ruy Lopez: 3...a6 4 Ba4 Nf6, unusual lines.} (6... Nxe4 $2 7. Bxc6 Bd6 8. Ba4 $18 (8. Nxc7+ Bxc7 9. Bxe4 d5 $14)) 7. d3 {[%emt 0:02:35]} h6 {[%emt 0:06:27]} 8. c3 {[%emt 0:03:34]} b5 {[%emt 0:03:03]} (8... O-O $11) 9. Bb3 $14 {[%emt 0:01:00]} d6 {[%emt 0:00:26]} 10. h3 {[%emt 0:03:04] [#]} Ba7 $146 {[%emt 0:01:57]} ({Predecessor:} 10... O-O 11. Nxf6+ Qxf6 12. Bd5 Bb7 13. g4 Kh7 14. Rg1 Qe7 15. g5 Nd8 16. gxh6 gxh6 17. Bxh6 Bxf2+ 18. Kxf2 Kxh6 {1-0 Rybka,S (2307)-Zheng,H (2068) Skalica op-A 2023 (7)}) 11. a4 {[%emt 0:02:45]} Bd7 {[%emt 0:14:24]} 12. O-O {[%emt 0:10:33]} O-O {[%emt 0:09:59]} 13. Bd2 {[%emt 0:03:18]} Na5 {[%emt 0:03:34]} 14. Bc2 {[%emt 0:00:51]} Nxd5 {[%emt 0:01:49]} 15. exd5 {[%emt 0:00:34] Threatens to win with axb5.} bxa4 {[%emt 0:05:52]} 16. Bxa4 {[%emt 0:02:53]} Bxa4 {[%emt 0:00:47]} 17. Qxa4 {[%emt 0:04:14]} Nb7 {[%emt 0:00:15][%cal Ba5b7,Bb7c5,Bc5e4][%mdl 32] Black is weak on the light squares} 18. b4 {[%emt 0:06:42][%cal Oa4c6]} (18. Qxa6 $2 Bxf2+ 19. Rxf2 Rxa6 20. Rxa6 Nc5 $19) 18... a5 {[%emt 0:06:17]} 19. Qb5 {[%emt 0:04:51]} Qb8 {[%emt 0:01:15]} 20. bxa5 {[%emt 0:04:56] White is much more active.} Nc5 {[%emt 0:00:10] [#]} 21. Qc4 {[%emt 0:01:29]} Qb3 {[%emt 0:05:05]} 22. Be3 {[%emt 0:02:03]} Qxc4 {[%emt 0:01:32]} 23. dxc4 {[%emt 0:00:02]} Ne4 {[%emt 0:02:18]} 24. Rfb1 {[%emt 0:00:58]} (24. Nd2 $1 $14 Nxd2 25. Bxd2) 24... Bxe3 $11 {[%emt 0:01:33]} 25. fxe3 {[%emt 0:00:06]} Ra7 {[%emt 0:01:26] Wards off Rb7} (25... Ra6 $5 {[%cal Rf8a8]}) 26. Ra3 {[%emt 0:04:15]} Rfa8 {[%emt 0:00:18]} 27. Rb5 {[%emt 0:02:26][%cal Oc4c5]} Kf8 {[%emt 0:03:16]} 28. c5 {[%emt 0:04:01]} Nxc5 {[%emt 0:01:51] [#]} ({Black should try} 28... f5 $14) 29. Nxe5 $1 $16 {[%emt 0:00:12][%mdl 576] Deflection} Re8 {[%emt 0:04:15]} (29... Ra6 30. Nc6) 30. Nc6 {[%emt 0:03:01]} Raa8 {[%emt 0:00:05]} 31. c4 {[%emt 0:02:43]} Re4 {[%emt 0:02:11]} 32. Kf2 {[%emt 0:03:38]} Nd7 {[%emt 0:06:02] Black cannot hold the game after this.} (32... Na6 $16) 33. Rb7 {[%emt 0:01:40]} Rxc4 {[%emt 0:00:24]} (33... Nc5 {was necessary.}) 34. a6 $18 {[%emt 0:01:09][%cal Ba5a6,Ba6a7][%mdl 32]} ({Not} 34. Rxc7 Nf6 $16) 34... Nb6 {[%emt 0:04:23]} 35. a7 {[%emt 0:23:09] White wants to mate with Rb8+.} ({Inferior is} 35. Rxc7 Nxd5 36. Ra7 Rxa7 37. Nxa7 Nc7 $11) 35... f5 {[%emt 0:01:09]} (35... Rc2+ $2 36. Kf3 g5 37. Rb8+ Kg7 38. Rb3) 36. Rb3 {[%emt 0:00:00] Weighted Error Value: White=0.13 (very precise) /Black=0.32} ({Less strong is} 36. Rxc7 Nxd5 37. Rb7 Rxc6 $16) 1-0